bitfinex/quotes_SOLUSD_20240816
["timestamp","ask_amount","ask_price","bid_price","bid_amount"]
[1723804153127,0.12549,143.49,143.46,6.9705]
[1723804155806,2.70848627,143.54,143.44,20.0]
[1723804155807,6.4889,143.54,143.44,20.0]
[1723804156039,6.9679,143.52,143.44,20.0]
[1723804156403,6.9679,143.52,143.47,6.9697]
[1723804156924,26.00563035,143.55,143.45,16.97851364]
[1723804157227,26.00563035,143.55,143.49,6.9689]
[1723804157228,0.12549,143.54,143.49,6.9689]
[1723804157999,6.9672,143.53,143.49,6.9689]
[1723804158197,20.0,143.52,143.49,6.9689]
[1723804158592,19.1543,143.55,143.5,6.9684]
[1723804158593,17.4263,143.55,143.5,6.9684]
[1723804159226,17.4263,143.55,143.51,6.9678]
[1723804159829,0.12549,143.54,143.51,6.9678]
[1723804160143,65.37647,143.54,143.51,6.9678]
[1723804160347,45.37647,143.54,143.51,6.9678]
[1723804162709,20.0,143.57,143.51,6.9678]
[1723804162710,6.9658,143.56,143.51,6.9678]
[1723804162920,20.0,143.55,143.51,6.9678]
[1723804164441,20.0,143.55,143.52,6.9676]
[1723804165216,37.4262,143.55,143.51,6.968]
[1723804166560,7.09229,143.54,143.5,6.9685]
[1723804167430,0.818915,143.53,143.5,6.9685]
[1723804168225,0.12549,143.53,143.5,6.9685]
[1723804169559,0.12549,143.53,143.51,6.9681]
[1723804169719,37.4263,143.55,143.51,6.9681]
[1723804169923,30.46,143.55,143.51,6.9681]
[1723804171053,30.46,143.55,143.52,6.9675]
[1723804171054,20.0,143.55,143.52,6.9675]
[1723804172756,26.9662,143.55,143.51,6.9681]
[1723804173054,26.9662,143.55,143.5,16.3538]
[1723804173055,6.9667,143.54,143.5,23.3223]
[1723804173738,37.4263,143.55,143.5,23.3223]
[1723804175825,37.4263,143.55,143.51,6.9681]
[1723804176025,20.0,143.55,143.5,16.3538]
[1723804176463,20.0,143.55,143.52,6.9676]
[1723804177929,26.9663,143.55,143.51,6.9679]
[1723804178941,26.9663,143.55,143.51,26.9679]
[1723804179564,20.0,143.55,143.51,26.9679]
[1723804180960,20.0,143.55,143.51,6.9679]
[1723804181130,26.9662,143.55,143.51,6.9679]
[1723804181738,26.9662,143.55,143.51,26.9679]
[1723804181968,26.9662,143.55,143.51,6.9679]
[1723804184535,20.0,143.55,143.5,16.3538]
[1723804185650,6.9668,143.54,143.5,23.322]
[1723804186156,26.9663,143.55,143.5,23.322]
[1723804186575,62.92906,143.54,143.46,15.6219]
[1723804186757,62.92906,143.54,143.48,20.0]
[1723804187166,62.80357,143.54,143.5,6.9683]
[1723804187370,52.34357,143.54,143.5,6.9683]
[1723804187576,45.12549,143.54,143.5,6.9683]
[1723804187783,26.9663,143.55,143.51,6.9679]
[1723804189177,7.09249,143.54,143.5,6.9684]
[1723804189401,52.21798,143.54,143.5,6.9684]
[1723804189662,0.12549,143.53,143.5,6.9684]
[1723804190485,0.818915,143.53,143.5,6.9684]
[1723804190880,0.12549,143.53,143.49,6.9689]
[1723804192673,0.12549,143.53,143.5,6.9686]
[1723804194169,20.0,143.55,143.5,20.0]
[1723804195077,20.0,143.55,143.52,6.9676]
[1723804196594,10.34113148,143.6,143.53,6.9668]
[1723804196595,6.9654,143.57,143.53,6.9668]
[1723804197477,6.9648,143.58,143.54,6.9666]
[1723804198280,20.0,143.57,143.54,6.9666]
[1723804199371,0.12549,143.56,143.51,16.2455]
[1723804199703,52.34257,143.56,143.52,6.9674]
[1723804200208,6.9662,143.55,143.51,23.2133]
[1723804200501,52.34227,143.56,143.52,6.9676]
[1723804202595,6.9662,143.55,143.51,6.968]
[1723804202905,45.37647,143.56,143.49,20.0]
[1723804203404,0.25098,143.56,143.53,6.9668]
[1723804203591,26.9655,143.57,143.53,6.9668]
[1723804203901,20.0,143.57,143.53,6.9668]
[1723804204704,20.0,143.57,143.54,6.9666]
[1723804206308,45.25098,143.56,143.52,6.9673]
[1723804206602,45.25098,143.56,143.53,6.9671]
[1723804207807,26.9654,143.57,143.53,6.9671]
[1723804208514,20.0,143.57,143.53,6.9671]
[1723804209715,20.0,143.57,143.54,6.9665]
[1723804211000,20.0,143.57,143.55,6.966]
[1723804211322,0.12549,143.58,143.55,6.966]
[1723804211323,20.0,143.58,143.55,6.966]
[1723804211688,10.46,143.6,143.56,6.9654]
[1723804211888,17.62173962,143.62,143.57,6.9648]
[1723804211889,0.25098,143.61,143.57,6.9648]
[1723804212086,0.12549,143.61,143.57,6.9648]
[1723804213124,7.08879,143.61,143.57,6.9648]
[1723804213329,27.08879,143.61,143.57,6.9648]
[1723804213528,26.9633,143.61,143.57,6.9648]
[1723804214735,14.23142271,143.65,143.61,6.9629]
[1723804214897,14.23142271,143.65,143.59,20.0]
[1723804214898,6.9619,143.64,143.6,6.9636]
[1723804216194,20.0,143.63,143.6,6.9636]
[1723804216398,26.9624,143.63,143.59,6.9641]
[1723804216731,37.4224,143.63,143.59,6.9641]
[1723804217421,37.4224,143.63,143.58,15.5087]
[1723804217422,30.46,143.63,143.6,6.9636]
[1723804218934,20.0,143.63,143.61,6.9631]
[1723804219245,20.12549,143.64,143.6,6.9636]
[1723804219947,27.08729,143.64,143.6,6.9636]
[1723804220127,20.12549,143.64,143.6,6.9636]
[1723804220447,20.0,143.64,143.61,6.963]
[1723804225640,20.0,143.64,143.62,6.9625]
[1723804225952,20.0,143.64,143.62,6.9624]
[1723804226167,6.9608,143.66,143.62,6.9624]
[1723804226339,6.9608,143.66,143.59,20.0]
[1723804226340,26.9617,143.65,143.6,6.9634]
[1723804226544,30.46,143.65,143.59,20.0]
[1723804226773,37.4214,143.65,143.61,6.9632]
[1723804227273,6.9618,143.64,143.6,6.9637]
[1723804227580,45.0,143.64,143.61,6.9632]
[1723804227771,37.4215,143.65,143.61,6.9632]
[1723804229272,30.46,143.65,143.61,6.9632]
[1723804230647,30.46,143.65,143.58,15.5087]
[1723804230648,6.9626,143.63,143.58,15.5087]
[1723804230851,10.46,143.63,143.57,6.9652]
[1723804231052,10.46,143.61,143.56,13.3225]
[1723804231421,10.46,143.61,143.55,15.9815]
[1723804231422,6.9639,143.6,143.55,15.9815]
[1723804231746,6.9639,143.6,143.55,22.9476]
[1723804232285,6.9639,143.6,143.56,6.9656]
[1723804232459,17.4234,143.61,143.56,6.9656]
[1723804232659,65.0,143.6,143.57,6.9652]
[1723804232977,65.0,143.6,143.56,6.9656]
[1723804235845,7.08989,143.59,143.55,6.9662]
[1723804236049,0.12549,143.58,143.55,6.9662]
[1723804236363,72.08939,143.6,143.56,6.9657]
[1723804236684,0.12549,143.59,143.56,6.9657]
[1723804237051,7.08979,143.59,143.54,20.0]
[1723804237387,17.54979,143.59,143.52,6.0448]
[1723804237686,45.0,143.58,143.54,6.9665]
[1723804237872,45.0,143.58,143.53,6.967]
[1723804238063,51.9648,143.58,143.52,6.0448]
[1723804238268,45.0,143.58,143.54,6.9663]
[1723804240272,0.12549,143.56,143.52,6.9675]
[1723804240494,11.153425,143.55,143.48,16.0023]
[1723804240822,72.660125,143.54,143.5,6.9686]
[1723804241583,71.9667,143.54,143.5,6.9686]
[1723804241887,65.0,143.54,143.5,6.9686]
[1723804242508,20.0,143.54,143.53,6.9671]
[1723804242686,20.0,143.54,143.52,6.9675]
[1723804242882,7.09069,143.57,143.52,6.9675]
[1723804242883,20.0,143.56,143.52,6.9675]
[1723804243283,26.9657,143.56,143.52,6.9675]
[1723804247125,6.9663,143.55,143.5,6.9682]
[1723804247313,72.660125,143.54,143.5,6.9682]
[1723804247620,62.4268,143.54,143.49,6.9687]
[1723804248882,62.4268,143.54,143.5,6.9686]
[1723804251429,0.12549,143.55,143.51,6.968]
[1723804251430,6.9663,143.55,143.51,6.968]
[1723804251732,20.0,143.54,143.51,6.968]
[1723804254226,45.37647,143.53,143.48,16.0023]
[1723804254424,52.09299,143.53,143.49,6.9688]
[1723804254626,37.4268,143.54,143.49,6.9688]
[1723804254824,26.9668,143.54,143.5,6.9685]
[1723804256128,26.9668,143.54,143.48,16.0023]
[1723804256129,26.9668,143.54,143.49,6.9689]
[1723804256331,45.0,143.53,143.49,6.9689]
[1723804257116,45.0,143.53,143.45,26.3749]
[1723804257117,10.46,143.51,143.46,6.9704]
[1723804257318,45.693425,143.5,143.45,6.9709]
[1723804257549,7.09459,143.49,143.45,6.9709]
[1723804257944,17.55459,143.49,143.45,6.9709]
[1723804258322,18.248015,143.49,143.44,22.51]
[1723804258549,45.0,143.48,143.44,22.51]
[1723804258844,45.0,143.48,143.45,6.971]
[1723804260247,17.55459,143.49,143.45,6.971]
[1723804260748,45.693425,143.48,143.45,6.971]
[1723804261248,45.693425,143.48,143.44,22.51]
[1723804261418,45.0,143.48,143.44,6.9714]
[1723804262364,45.0,143.48,143.46,6.9704]
[1723804262580,6.9682,143.51,143.47,6.97]
[1723804262868,20.0,143.5,143.47,6.97]
[1723804263666,6.9677,143.52,143.48,6.9695]
[1723804263667,20.0,143.51,143.48,6.9695]
[1723804265170,26.9682,143.51,143.47,6.97]
[1723804265372,6.9687,143.5,143.45,16.1137]
[1723804266470,37.4282,143.51,143.46,6.9702]
[1723804266660,45.0,143.5,143.47,6.97]
[1723804267468,37.4282,143.51,143.47,6.97]
[1723804267469,30.46,143.51,143.47,6.97]
[1723804267678,20.0,143.51,143.47,6.97]
[1723804268167,20.0,143.51,143.48,6.9694]
[1723804268375,27.34417,143.52,143.48,6.9694]
[1723804268537,27.09319,143.52,143.48,6.9694]
[1723804268742,26.9677,143.52,143.48,6.9694]
[1723804269777,26.9677,143.52,143.47,6.9699]
[1723804269778,51.9682,143.51,143.47,6.9699]
[1723804269939,26.9687,143.5,143.46,6.9705]
[1723804270151,20.0,143.5,143.46,6.9705]
[1723804271065,20.0,143.5,143.47,6.9699]
[1723804272069,8.6943,143.55,143.46,20.0]
[1723804272252,6.9663,143.55,143.48,20.0]
[1723804272450,10.46,143.56,143.47,10.46]
[1723804272451,10.46,143.56,143.51,6.9677]
[1723804272654,6.9656,143.57,143.52,6.9675]
[1723804273239,6.9657,143.56,143.52,6.9675]
[1723804274086,20.0,143.55,143.52,6.9675]
[1723804275076,20.0,143.55,143.51,6.9679]
[1723804277561,20.0,143.55,143.52,6.9676]
[1723804277761,0.37647,143.57,143.52,6.9676]
[1723804277762,6.9658,143.56,143.52,6.9676]
[1723804278091,20.0,143.55,143.5,16.0358]
[1723804278394,26.9662,143.55,143.5,13.645417]
[1723804279684,20.0,143.55,143.5,13.645417]
[1723804279997,6.9671,143.54,143.5,13.645417]
[1723804281290,6.9671,143.54,143.5,20.613817]
[1723804283164,6.9663,143.55,143.51,6.9679]
[1723804283361,10.46,143.56,143.5,33.645417]
[1723804283362,20.0,143.54,143.52,6.9675]
[1723804283778,20.0,143.54,143.53,6.9671]
[1723804284196,20.0,143.54,143.52,6.9675]
[1723804284493,20.0,143.56,143.52,6.9675]
[1723804285419,26.9657,143.56,143.52,6.9675]
[1723804286113,10.58549,143.58,143.54,6.9666]
[1723804286114,7.09019,143.58,143.54,6.9666]
[1723804286409,17.4243,143.59,143.55,6.9661]
[1723804286582,6.9643,143.59,143.55,6.9661]
[1723804287088,6.9638,143.6,143.55,6.966]
[1723804287902,10.46,143.61,143.55,6.966]
[1723804287903,6.9643,143.59,143.55,6.966]
[1723804288721,20.0,143.58,143.55,6.966]
[1723804290804,6.9643,143.59,143.55,6.966]
[1723804292722,6.9638,143.6,143.56,6.9655]
[1723804292879,10.46,143.63,143.55,15.8717]
[1723804293084,7.08759,143.64,143.59,20.0]
[1723804293285,6.9621,143.64,143.59,20.0]
[1723804293518,6.9621,143.64,143.6,6.9637]
[1723804293817,10.46,143.65,143.59,20.0]
[1723804293818,6.9624,143.63,143.59,6.9642]
[1723804294710,65.0,143.62,143.59,6.9642]
[1723804295511,20.0,143.62,143.59,6.9642]
[1723804296010,20.0,143.62,143.56,26.0727]
[1723804296208,20.0,143.62,143.58,6.9646]
[1723804296415,26.9628,143.62,143.58,6.9646]
[1723804296600,18.116825,143.61,143.56,13.0382]
[1723804296796,51.9641,143.6,143.56,6.0727]
[1723804296983,51.9641,143.6,143.55,22.8378]
[1723804298913,51.9641,143.6,143.56,6.9656]
[1723804304036,51.9641,143.6,143.55,22.8377]
[1723804304037,6.9644,143.59,143.55,22.8377]
[1723804304742,51.9639,143.6,143.55,22.8377]
[1723804305040,6.9643,143.59,143.55,22.8377]
[1723804306306,45.0,143.6,143.55,15.8717]
[1723804306510,6.9644,143.59,143.52,26.3391]
[1723804306728,51.9649,143.58,143.54,6.9666]
[1723804307051,6.9649,143.58,143.54,6.9666]
[1723804311524,7.08989,143.59,143.54,6.9666]
[1723804311725,7.08989,143.59,143.52,6.3391]
[1723804311726,6.9638,143.6,143.56,26.9657]
[1723804311949,20.0,143.59,143.56,6.9657]
[1723804312632,20.0,143.59,143.56,26.9657]
[1723804312824,20.0,143.6,143.56,26.9657]
[1723804313347,20.0,143.6,143.57,6.9652]
[1723804313551,6.9619,143.64,143.6,6.9634]
[1723804314753,20.0,143.63,143.6,6.9634]
[1723804315057,20.0,143.63,143.61,6.9632]
[1723804315360,6.9617,143.65,143.61,6.9632]
[1723804315361,26.9617,143.65,143.61,6.9632]
[1723804315655,45.0,143.64,143.6,6.9636]
[1723804318166,0.25098,143.63,143.59,6.9642]
[1723804318470,27.33907,143.63,143.59,6.9642]
[1723804318651,28.032495,143.63,143.59,6.9642]
[1723804319370,51.9628,143.62,143.58,6.9644]
[1723804319743,27.33887,143.63,143.58,6.9644]
[1723804320834,6.9628,143.62,143.58,6.9644]
[1723804321060,45.0,143.62,143.58,6.9644]
[1723804322038,51.9628,143.62,143.58,6.9644]
[1723804323778,6.9633,143.61,143.57,21.3146]
[1723804323942,6.9634,143.61,143.57,15.0084]
[1723804324155,45.12549,143.6,143.57,15.0084]
[1723804325255,10.46,143.58,143.53,21.6001]
[1723804326091,20.25098,143.59,143.53,21.6001]
[1723804326279,45.12549,143.58,143.53,21.6001]
[1723804326486,45.818915,143.58,143.53,21.6001]
[1723804326669,52.783815,143.58,143.54,6.9663]
[1723804326860,52.09039,143.58,143.54,6.9663]
[1723804327863,45.12549,143.58,143.55,6.9661]
[1723804328073,26.9643,143.59,143.55,6.9661]
[1723804328374,20.0,143.59,143.56,6.9657]
[1723804330077,20.0,143.59,143.53,21.6001]
[1723804330078,26.9644,143.59,143.55,6.966]
[1723804330573,27.657825,143.59,143.55,6.966]
[1723804331303,6.9647,143.58,143.54,6.9665]
[1723804331502,0.693425,143.57,143.54,6.9665]
[1723804332289,6.9647,143.58,143.54,6.9665]
[1723804333391,26.9644,143.59,143.55,6.966]
[1723804333589,20.0,143.59,143.56,6.9656]
[1723804334610,20.0,143.59,143.55,6.966]
[1723804335693,26.9642,143.59,143.55,6.966]
[1723804337193,26.9642,143.59,143.56,6.9656]
[1723804337194,20.0,143.59,143.56,6.9656]
[1723804343931,20.0,143.59,143.57,6.9651]
[1723804344131,6.9633,143.61,143.57,6.9651]
[1723804344132,20.0,143.6,143.57,6.9651]
[1723804344555,6.9633,143.61,143.57,6.9651]
[1723804344728,45.11612387,143.65,143.57,6.9651]
[1723804344729,6.9629,143.62,143.57,6.9651]
[1723804345548,6.9629,143.62,143.58,6.9646]
[1723804345919,20.0,143.61,143.58,6.9646]
[1723804350249,13.81243035,143.66,143.61,6.9629]
[1723804350434,6.9611,143.66,143.62,6.9628]
[1723804350637,6.9611,143.66,143.61,6.9629]
[1723804351352,6.9611,143.66,143.62,6.9628]
[1723804351523,6.9604,143.67,143.63,6.9622]
[1723804351724,20.0,143.66,143.63,6.9622]
[1723804351957,6.9604,143.67,143.63,6.9622]
[1723804352164,6.9604,143.67,143.62,6.9626]
[1723804352458,19.38806897,143.68,143.61,6.9632]
[1723804352659,10.46,143.66,143.59,16.4029]
[1723804352860,0.12549,143.63,143.54,36.0413]
[1723804353035,8.032295,143.63,143.58,6.9642]
[1723804353238,52.33887,143.63,143.58,6.9642]
[1723804354851,6.9628,143.62,143.58,6.9642]
[1723804356329,6.9634,143.61,143.57,6.9651]
[1723804357149,6.9629,143.62,143.58,6.9647]
[1723804357359,20.0,143.61,143.58,6.9647]
[1723804357745,20.0,143.61,143.59,6.9642]
[1723804357946,20.0,143.62,143.59,6.9642]
[1723804358349,20.0,143.62,143.58,6.9645]
[1723804358945,20.0,143.62,143.54,36.0413]
[1723804358946,52.21428,143.61,143.54,36.0413]
[1723804359149,26.9629,143.62,143.54,36.0413]
[1723804359753,26.9629,143.62,143.58,6.9647]
[1723804361888,20.0,143.62,143.59,6.9641]
[1723804362258,20.0,143.62,143.56,20.0]
[1723804362259,20.0,143.62,143.58,6.9645]
[1723804362759,7.08909,143.61,143.57,6.965]
[1723804362999,45.0,143.6,143.57,6.965]
[1723804363480,45.0,143.6,143.54,16.0413]
[1723804363684,0.12549,143.61,143.54,16.0413]
[1723804363685,45.25098,143.61,143.54,16.0413]
[1723804363990,6.9643,143.59,143.54,16.0413]
[1723804364152,6.9643,143.59,143.55,6.9658]
[1723804364358,26.9639,143.6,143.55,6.9658]
[1723804364588,0.12549,143.59,143.55,6.9658]
[1723804364773,0.12549,143.59,143.51,6.08589853]
[1723804364774,45.37647,143.59,143.51,6.08589853]
[1723804365087,45.37647,143.59,143.5,42.66839853]
[1723804365663,45.37647,143.59,143.5,36.5825]
[1723804365988,6.9649,143.58,143.54,6.9663]
[1723804366300,45.25098,143.59,143.52,21.39317562]
[1723804366503,45.25098,143.59,143.54,20.0]
[1723804367770,26.9638,143.6,143.54,20.0]
[1723804369210,26.9638,143.6,143.56,6.9656]
[1723804371002,26.9638,143.6,143.55,6.966]
[1723804379110,26.9638,143.6,143.56,6.9656]
[1723804379602,20.0,143.6,143.56,20.0]
[1723804379796,20.12549,143.63,143.56,20.0]
[1723804380410,6.9631,143.62,143.58,6.9644]
[1723804380607,20.12549,143.63,143.59,6.9641]
[1723804380608,20.0,143.61,143.59,6.9641]
[1723804380946,6.9628,143.62,143.58,6.9645]
[1723804381104,20.0,143.61,143.58,6.9645]
[1723804384536,26.9633,143.61,143.57,6.9651]
[1723804384851,0.693425,143.6,143.57,6.9651]
[1723804385234,52.657225,143.6,143.56,6.9653]
[1723804387120,0.12549,143.57,143.51,22.5661]
[1723804387435,0.12549,143.57,143.5,6.9684]
[1723804387436,6.9663,143.55,143.5,6.9684]
[1723804387662,6.9663,143.55,143.48,6.0334]
[1723804387663,7.659725,143.55,143.51,6.968]
[1723804387930,6.9663,143.55,143.51,6.968]
[1723804388242,7.659725,143.55,143.51,6.968]
[1723804388447,0.693425,143.54,143.51,6.968]
[1723804388634,45.693425,143.54,143.51,6.968]
[1723804389648,45.693425,143.54,143.5,6.9684]
[1723804391032,45.0,143.54,143.51,6.968]
[1723804392241,45.0,143.54,143.52,6.9676]
[1723804392450,45.0,143.55,143.52,6.9676]
[1723804401290,45.0,143.55,143.51,6.968]
[1723804402756,0.12549,143.54,143.51,6.968]
[1723804403156,51.9663,143.55,143.51,6.968]
[1723804403383,0.12549,143.57,143.5,20.0]
[1723804403564,26.9643,143.59,143.52,20.0]
[1723804403762,45.0,143.58,143.54,6.9665]
[1723804404193,51.9648,143.58,143.54,6.9665]
[1723804405012,27.08979,143.59,143.55,6.9661]
[1723804405187,26.9643,143.59,143.55,6.9661]
[1723804405894,20.0,143.59,143.55,6.9661]
[1723804407490,20.693425,143.59,143.55,6.9661]
[1723804407689,20.0,143.59,143.55,6.9661]
[1723804408611,20.0,143.59,143.56,6.9653]
[1723804408785,27.08929,143.6,143.56,6.9653]
[1723804410290,0.693425,143.59,143.55,6.966]
[1723804410491,45.693425,143.59,143.55,6.966]
[1723804411406,45.0,143.59,143.55,6.966]
[1723804411599,0.818915,143.58,143.54,6.9665]
[1723804411786,1.069895,143.58,143.54,6.9665]
[1723804413104,8.034595,143.58,143.54,6.9665]
[1723804414404,0.693425,143.57,143.54,6.9665]
[1723804416731,45.693425,143.57,143.54,6.9665]
[1723804417241,45.0,143.57,143.54,6.9665]
[1723804419154,7.34117,143.58,143.54,6.9665]
[1723804421625,6.9652,143.57,143.53,6.967]
[1723804421833,45.0,143.56,143.53,6.967]
[1723804422008,0.693425,143.55,143.53,6.967]
[1723804422211,0.693425,143.55,143.51,6.968]
[1723804422442,0.693425,143.54,143.49,6.3268]
[1723804422607,7.660125,143.54,143.5,6.9683]
[1723804422950,0.693425,143.54,143.5,6.9683]
[1723804423233,0.693425,143.54,143.51,6.9681]
[1723804423234,45.0,143.54,143.51,6.9681]
[1723804423637,45.693425,143.54,143.51,6.9681]
[1723804424331,45.0,143.54,143.51,6.9681]
[1723804425817,51.9667,143.54,143.5,6.9685]
[1723804429213,0.693425,143.53,143.5,6.9685]
[1723804430035,0.12549,143.53,143.5,6.9685]
[1723804430216,0.37647,143.53,143.5,6.9685]
[1723804431450,1.069895,143.53,143.5,6.9685]
[1723804432107,34.8538,143.59,143.48,35.7928]
[1723804432309,6.9656,143.57,143.52,6.9675]
[1723804432525,20.0,143.56,143.52,6.9675]
[1723804432904,20.0,143.56,143.52,26.9675]
[1723804433812,26.9661,143.56,143.51,6.9681]
[1723804434010,45.37647,143.55,143.48,15.7928]
[1723804434319,45.37647,143.55,143.5,6.9685]
[1723804434320,0.12549,143.53,143.5,6.9685]
[1723804434522,52.21818,143.53,143.49,6.9689]
[1723804434723,52.21818,143.53,143.5,6.9685]
[1723804434724,0.25098,143.53,143.5,6.9685]
[1723804434943,45.25098,143.53,143.5,6.9685]
[1723804435347,0.693425,143.52,143.5,6.9685]
[1723804435528,45.25098,143.53,143.5,6.9685]
[1723804435733,45.944405,143.53,143.5,6.9685]
[1723804436351,45.944405,143.53,143.49,6.969]
[1723804436731,45.25098,143.53,143.49,6.969]
[1723804437152,0.693425,143.52,143.48,22.7623]
[1723804437448,0.818915,143.52,143.48,15.7928]
[1723804438916,0.818915,143.52,143.44,42.68065987]
[1723804439117,0.12549,143.52,143.48,6.9694]
[1723804439346,0.25098,143.52,143.48,6.9694]
[1723804444123,0.25098,143.52,143.47,6.97]
[1723804444124,7.21898,143.52,143.47,6.97]
[1723804444362,45.693425,143.51,143.44,16.5924]
[1723804444658,0.693425,143.51,143.48,6.9695]
[1723804444846,45.0,143.51,143.48,6.9695]
[1723804445029,0.12549,143.51,143.48,6.9695]
[1723804445530,45.25098,143.51,143.48,6.9695]
[1723804447061,0.12549,143.49,143.42,6.08922751]
[1723804447358,0.12549,143.48,143.41,16.3053]
[1723804447666,1.195385,143.48,143.41,16.3053]
[1723804447822,8.165085,143.48,143.41,16.3053]
[1723804448022,45.0,143.47,143.43,6.9719]
[1723804448223,0.12549,143.45,143.42,6.9725]
[1723804448448,0.12549,143.45,143.4,6.973]
[1723804448650,0.944405,143.45,143.4,6.973]
[1723804448860,0.25098,143.44,143.4,6.973]
[1723804449160,0.25098,143.44,143.41,6.9729]
[1723804449486,0.818915,143.44,143.41,6.9729]
[1723804453181,0.12549,143.44,143.41,6.9729]
[1723804454276,0.12549,143.44,143.42,6.9725]
[1723804454491,45.0,143.45,143.42,6.9725]
[1723804454864,11.0847,143.48,143.42,20.0]
[1723804455066,6.1306,143.51,143.42,20.0]
[1723804456156,6.1306,143.51,143.37,15.2576]
[1723804456157,0.12549,143.47,143.44,6.9711]
[1723804456357,45.37647,143.47,143.44,6.9711]
[1723804458576,0.693425,143.46,143.44,6.9711]
[1723804460182,45.37647,143.47,143.44,6.9711]
[1723804462503,45.37647,143.47,143.43,6.9718]
[1723804462685,52.34667,143.47,143.43,6.9718]
[1723804463001,0.693425,143.46,143.43,6.9718]
[1723804463375,45.37647,143.47,143.43,6.9718]
[1723804463574,45.37647,143.47,143.44,6.9714]
[1723804465514,45.12549,143.47,143.45,6.9709]
[1723804465679,45.12549,143.48,143.45,6.9709]
[1723804466899,27.09429,143.5,143.46,6.9705]
[1723804467116,0.12549,143.49,143.46,6.9705]
[1723804468307,0.25098,143.49,143.46,6.9705]
[1723804468786,45.25098,143.49,143.46,6.9705]
[1723804469186,0.693425,143.48,143.45,6.9709]
[1723804469418,7.663125,143.48,143.44,6.9715]
[1723804469593,45.37647,143.47,143.44,6.9715]
[1723804472699,45.37647,143.47,143.45,6.9709]
[1723804473026,0.37647,143.47,143.45,6.9709]
[1723804475525,0.37647,143.47,143.43,6.9718]
[1723804475745,0.37647,143.47,143.42,36.2678]
[1723804476228,0.37647,143.47,143.44,6.9712]
[1723804479616,1.069895,143.47,143.44,6.9712]
[1723804480213,0.37647,143.47,143.44,6.9712]
[1723804480843,1.069895,143.47,143.44,6.9712]
[1723804481550,0.37647,143.47,143.44,6.9712]
[1723804483818,0.37647,143.47,143.45,6.971]
[1723804484850,0.12549,143.47,143.45,6.971]
[1723804485019,45.0,143.48,143.45,6.971]
[1723804485642,0.12549,143.48,143.45,6.971]
[1723804485845,0.37647,143.48,143.45,6.971]
[1723804486632,45.0,143.49,143.46,6.9704]
[1723804488759,45.693425,143.49,143.46,6.9704]
[1723804489131,0.693425,143.48,143.46,6.9704]
[1723804489352,51.9691,143.49,143.45,6.9709]
[1723804489561,0.37647,143.48,143.45,6.9709]
[1723804490154,45.0,143.49,143.46,6.9705]
[1723804490356,45.0,143.49,143.47,6.97]
[1723804490726,45.0,143.49,143.46,6.9704]
[1723804496533,9.64968458,143.54,143.47,20.0]
[1723804496736,29.22150025,143.56,143.47,20.0]
[1723804496950,6.9676,143.52,143.48,6.9693]
[1723804497961,45.0,143.51,143.48,6.9693]